bitfinex-derivatives/quotes_SOLF0:USTF0_20241027
["timestamp","ask_amount","ask_price","bid_price","bid_amount"]
[1730025734299,4.08,173.93,173.83,3.5905]
[1730025734811,4.08,173.93,173.91,2.8782]
[1730025735298,1.2256,173.98,173.83,3.5905]
[1730025735504,4.08,173.97,173.93,2.8779]
[1730025736718,4.08,173.96,173.93,2.8779]
[1730025737807,4.08,173.96,173.94,2.8778]
[1730025739103,4.08,173.96,173.86,4.08]
[1730025739409,4.08,173.96,173.95,2.8776]
[1730025742199,1.2094,173.99,173.86,4.08]
[1730025742503,4.08,173.98,173.86,4.08]
[1730025743007,4.08,173.98,173.97,2.8772]
[1730025756107,1.1708,174.05,173.91,3.6592]
[1730025756302,4.08,174.04,173.91,3.6592]
[1730025757116,4.08,174.04,173.99,2.8769]
[1730025757518,2.876,174.05,173.91,3.6592]
[1730025757722,4.08,174.04,174.0,2.8768]
[1730025758416,2.876,174.05,174.0,2.8768]
[1730025758618,4.08,174.04,174.0,2.8768]
[1730025762817,4.08,174.04,174.01,2.8766]
[1730025765806,2.876,174.05,174.01,2.8766]
[1730025766005,4.08,174.04,174.01,2.8766]
[1730025767408,4.08,174.03,174.01,2.8766]
[1730025779736,4.08,174.03,173.98,2.877]
[1730025780628,2.8766,174.02,173.98,2.877]
[1730025781630,4.08,174.03,173.91,3.6592]
[1730025781828,4.08,174.03,173.97,2.8773]
[1730025781829,2.8768,174.01,173.97,2.8773]
[1730025784730,2.8768,174.01,173.98,2.8771]
[1730025792855,2.8765,174.02,173.98,2.8771]
[1730025793344,4.08,174.03,173.91,3.6592]
[1730025793547,4.08,174.03,174.0,2.8767]
[1730025794348,2.8764,174.03,174.0,2.8767]
[1730025794545,2.81646841,174.08,174.0,2.8767]
[1730025794546,4.08,174.02,174.0,2.8767]
[1730025795453,16.03123273,174.09,174.02,2.8764]
[1730025795656,4.08,174.08,173.93,4.08]
[1730025796150,2.8761,174.05,174.01,2.8766]
[1730025796350,4.08,174.04,174.01,2.8766]
[1730025799864,3.6818,174.09,173.93,4.08]
[1730025800059,6.9555,174.08,174.04,2.876]
[1730025800358,4.08,174.07,173.97,4.08]
[1730025800564,4.08,174.07,173.98,3.7777]
[1730025801563,4.08,174.07,174.05,2.8758]
[1730025809469,4.08,174.07,173.98,3.7777]
[1730025809470,4.08,174.07,174.06,2.8758]
[1730025810058,4.08,174.09,174.07,2.8756]
[1730025811670,4.08,174.09,174.01,4.08]
[1730025811974,4.08,174.09,174.08,2.8755]
[1730025814072,4.08,174.12,174.01,4.08]
[1730025814273,4.08,174.12,174.09,2.8753]
[1730025826887,2.8751,174.11,174.01,4.08]
[1730025827274,4.08,174.12,173.98,3.7777]
[1730025827482,4.08,174.12,173.99,4.08]
[1730025827990,2.8754,174.09,174.05,2.8759]
[1730025828189,4.08,174.12,174.05,2.8759]
[1730025828190,4.08,174.08,174.05,2.8759]
[1730025828586,4.08,174.08,173.99,4.08]
[1730025828808,4.08,174.08,174.06,2.8758]
[1730025831291,4.08,174.08,173.99,4.08]
[1730025831998,6.9555,174.08,174.03,2.8762]
[1730025832895,6.9555,174.08,174.04,2.8761]
[1730025844495,2.8757,174.07,174.01,2.8765]
[1730025844695,4.08,174.08,173.98,79.07315693]
[1730025845297,2.8759,174.06,174.01,2.8767]
[1730025846202,4.08,174.08,173.86,5.7581]
[1730025846396,3.6101,174.07,173.92,1.1818]
[1730025846711,2.8766,174.02,173.97,2.8772]
[1730025847005,3.6101,174.07,173.92,1.1818]
[1730025847006,4.08,174.01,173.93,1.2764]
[1730025847206,4.08,174.01,173.94,1.2315]
[1730025848303,4.08,174.01,173.99,2.8769]
[1730025859310,4.08,174.02,173.99,2.8769]
[1730025860706,2.8767,174.01,173.97,2.8772]
[1730025861108,4.08,174.02,173.94,1.2315]
[1730025861611,2.8767,174.01,173.96,2.8773]
[1730025865718,2.8767,174.01,173.97,2.8773]
[1730025871416,2.876,174.05,174.01,2.8766]
[1730025871621,3.6101,174.07,173.94,1.2315]
[1730025871816,4.08,174.06,173.94,1.2315]
[1730025872416,2.8764,174.03,173.99,2.877]
[1730025872624,4.08,174.02,173.99,2.877]
[1730025873535,4.08,174.02,173.98,2.8771]
[1730025875130,4.08,174.02,173.94,1.2315]
[1730025875331,6.9566,174.02,173.97,2.8773]
[1730025875731,4.08,174.02,173.97,2.8773]
[1730025876030,2.8768,174.01,173.96,2.8774]
[1730025876823,2.8768,174.01,173.94,1.2315]
[1730025876824,2.8768,174.01,173.97,2.8773]
[1730025877228,4.08,174.02,173.94,1.2315]
[1730025877730,2.8767,174.01,173.94,1.2315]
[1730025877925,4.08,174.02,173.94,1.2315]
[1730025878734,6.9566,174.02,173.98,2.8771]
[1730025879034,4.08,174.01,173.98,2.8771]
[1730025882334,4.08,174.01,173.94,1.2315]
[1730025883430,4.08,174.0,173.94,1.2315]
[1730025883636,3.6101,174.07,173.94,1.2315]
[1730025883939,4.08,174.06,173.98,2.877]
[1730025884839,2.8765,174.02,173.98,2.877]
[1730025885039,4.08,174.01,173.98,2.877]
[1730025890942,4.08,174.01,173.99,2.877]
[1730025892542,4.08,174.01,173.98,2.8771]
[1730025895548,6.9568,174.01,173.98,2.8771]
[1730025896152,6.9568,174.01,173.94,1.2315]
[1730025896347,6.9568,174.01,173.97,2.8773]
[1730025896542,2.8768,174.0,173.97,2.8773]
[1730025899446,4.08,174.01,173.94,1.2315]
[1730025899749,2.8771,173.99,173.95,2.8776]
[1730025900147,4.08,174.01,173.94,1.2315]
[1730025900349,2.8773,173.98,173.94,2.8777]
[1730025900649,4.08,173.97,173.94,2.8777]
[1730025905148,4.08,173.97,173.92,1.1818]
[1730025905349,4.08,173.97,173.87,2.3932]
[1730025905753,2.8778,173.95,173.9,2.8784]
[1730025905950,4.08,173.97,173.9,2.8784]
[1730025906642,2.8778,173.94,173.9,2.8784]
[1730025906852,4.06,173.93,173.9,2.8784]
[1730025907053,4.06,173.93,173.87,2.3932]
[1730025907349,2.8782,173.92,173.87,2.3932]
[1730025907657,6.938,173.93,173.88,2.8788]
[1730025907846,4.06,173.93,173.87,2.3932]
[1730025908244,4.06,173.93,173.88,2.8787]
[1730025908448,4.06,173.93,173.87,2.3932]
[1730025910957,4.06,173.93,173.9,2.8783]
[1730025911457,4.06,173.93,173.88,2.8787]
[1730025911650,4.06,173.93,173.87,2.3932]
[1730025911855,4.08,173.94,173.87,2.3932]
[1730025912251,4.08,173.94,173.91,2.8782]
[1730025912660,2.878,173.93,173.89,2.8786]
[1730025912847,4.08,173.94,173.87,2.3932]
[1730025913455,4.08,173.94,173.9,2.8784]
[1730025916762,4.08,173.94,173.93,2.878]
[1730025929868,4.08,173.94,173.75,4.08]
[1730025930075,4.08,173.94,173.81,1.1606]
[1730025930269,2.8785,173.91,173.81,1.1606]
[1730025930476,4.08,173.9,173.81,1.1606]
[1730025930773,4.08,173.89,173.81,1.1606]
[1730025930977,1.2111,173.96,173.81,1.1606]
[1730025930978,4.08,173.88,173.81,1.1606]
[1730025931285,4.08,173.9,173.82,1.2733]
[1730025931672,4.08,173.9,173.83,4.06]
[1730025932986,4.08,173.9,173.85,2.8793]
[1730025934583,4.08,173.9,173.86,2.8791]
[1730025937594,2.8779,173.94,173.89,2.8786]
[1730025937796,4.06,173.93,173.82,1.2733]
[1730025938886,4.06,173.93,173.89,2.8786]
[1730025940198,4.06,173.93,173.92,2.8781]
[1730025940395,55.92,173.97,173.84,4.06]
[1730025940705,4.06,173.96,173.84,4.06]
[1730025940892,4.06,173.96,173.92,2.878]
[1730025941291,1.2,174.02,173.84,4.06]
[1730025941491,4.06,173.99,173.84,4.06]
[1730025942888,2.8773,173.97,173.92,2.878]
[1730025946400,4.06,173.99,173.84,4.06]
[1730025946602,6.9371,173.99,173.84,4.06]
[1730025946997,4.06,173.99,173.84,4.06]
[1730025947203,2.8772,173.98,173.93,2.8779]
[1730025949399,4.06,173.99,173.89,3.6489]
[1730025950499,4.06,173.99,173.89,1.1642]
[1730025951209,2.8777,173.95,173.9,2.8783]
[1730025951396,4.06,173.94,173.9,2.8783]
[1730025951996,6.9379,173.94,173.9,2.8783]
[1730025955007,4.06,173.94,173.93,2.878]
[1730025955611,1.1104,174.01,173.89,1.1642]
[1730025955808,6.937,173.99,173.94,2.8777]
[1730025956208,6.937,173.99,173.95,2.8776]
[1730025956209,4.06,173.99,173.95,2.8776]
[1730025956406,1.2,174.02,173.89,3.6151]
[1730025956608,4.06,174.01,173.89,3.6151]
[1730025956811,6.9367,174.01,173.96,2.8774]
[1730025957403,4.06,174.0,173.89,3.6151]
[1730025960017,4.06,174.0,173.97,2.8772]
[1730025960313,2.8765,174.03,173.92,4.06]
[1730025960509,4.06,174.02,173.92,4.06]
[1730025961411,4.06,174.02,173.98,2.877]
[1730025961811,1.206,174.07,173.92,4.06]
[1730025962210,4.06,174.05,173.92,4.06]
[1730025963017,4.06,174.05,174.02,2.8764]
[1730025963318,4.06,174.05,173.97,4.06]
[1730025963618,4.06,174.05,174.02,2.8763]
[1730025964809,2.8762,174.04,173.99,2.8769]
[1730025965214,4.06,174.05,173.98,3.7611]
[1730025965515,6.936,174.05,174.0,2.8768]
[1730025969619,2.8765,174.02,173.97,2.8773]
[1730025969821,4.06,174.05,173.93,4.06]
[1730025970021,4.06,174.05,173.94,1.1865]
[1730025970617,2.8765,174.03,173.97,2.8773]
[1730025971220,4.06,174.05,173.88,2.4999]
[1730025971413,2.8769,174.0,173.94,2.8777]
[1730025971612,4.06,173.99,173.94,2.8777]
[1730025972414,4.06,173.99,173.96,2.8775]
[1730025976426,4.06,173.99,173.97,2.8773]
[1730025976628,4.06,173.99,173.89,5.2465]
[1730025977225,1.1085,174.09,173.89,5.2465]
[1730025977427,4.06,174.08,173.89,5.2465]
[1730025977828,2.8757,174.07,174.02,2.8763]
[1730025979134,2.3261,174.09,173.97,3.7172]
[1730025979337,1.2623,174.13,173.97,3.7172]
[1730025979642,4.06,174.12,174.02,2.8764]
[1730025979933,1.1101,174.11,173.97,3.7172]
[1730025980231,1.1101,174.11,174.05,2.8759]
[1730025980435,1.2623,174.13,174.0,4.06]
[1730025980632,4.06,174.1,174.0,4.06]
[1730025981229,1.2623,174.13,174.0,4.06]
[1730025981432,4.06,174.12,174.0,4.06]
[1730025982235,6.9349,174.12,174.06,2.8757]
[1730025982927,4.06,174.12,174.0,4.06]
[1730025984128,4.06,174.12,174.07,2.8756]
[1730025984929,4.06,174.12,174.0,4.06]
[1730025985133,4.06,174.12,174.08,2.8754]
[1730025986741,58.7945,174.15,174.09,2.8752]
[1730025987040,2.8745,174.15,174.04,4.06]
[1730025987239,4.06,174.14,174.05,3.5584]
[1730025987444,4.06,174.14,174.1,2.8751]
[1730025988445,4.06,174.14,174.07,2.8755]
[1730025988840,2.8748,174.13,174.07,2.8755]
[1730025989047,4.06,174.14,174.07,2.8755]
[1730025990347,2.8748,174.12,174.07,2.8755]
[1730025991045,2.8748,174.12,174.05,3.5584]
[1730025991354,2.8748,174.12,174.06,2.8758]
[1730025992544,2.8748,174.12,174.07,2.8756]
[1730025995454,4.06,174.14,174.05,1.1569]
[1730025995758,2.8753,174.1,174.05,4.0328]
[1730025996057,6.9353,174.1,174.05,4.0328]
[1730025996953,2.8753,174.09,174.04,2.8761]
[1730025997155,4.06,174.1,174.01,4.06]
[1730025997359,4.06,174.1,173.99,5.2818]
[1730025998062,4.06,174.1,173.99,1.2218]
[1730025998256,2.8757,174.07,174.02,2.8765]
[1730025999061,4.06,174.1,173.99,1.2218]
[1730025999265,4.06,174.09,174.0,2.8768]
[1730025999465,4.06,174.08,174.0,2.8768]
[1730026000063,4.06,174.08,173.99,1.2218]
[1730026000257,4.06,174.08,174.01,2.8766]
[1730026001263,2.8756,174.08,174.02,2.8764]
[1730026001565,4.06,174.07,173.99,1.2218]
[1730026001960,4.06,174.1,174.05,2.8759]
[1730026006358,4.06,174.1,174.06,2.8758]
[1730026012771,2.8748,174.13,174.08,2.8755]
[1730026012965,4.06,174.12,174.08,2.8755]
[1730026013172,4.06,174.12,174.01,4.06]
[1730026013357,6.9349,174.12,174.07,2.8756]
[1730026013863,2.875,174.11,174.07,2.8756]
[1730026015468,2.875,174.11,174.01,4.06]
[1730026015663,2.875,174.11,174.06,2.8757]
[1730026018870,2.8753,174.1,174.04,2.8761]
[1730026019079,2.8753,174.1,174.01,4.06]
[1730026019971,2.8755,174.08,174.01,4.06]
[1730026020272,6.9355,174.08,173.99,1.2218]
[1730026020466,4.06,174.08,173.99,5.2818]
[1730026020671,2.8759,174.06,173.99,1.2218]
[1730026020869,4.06,174.08,173.99,1.2218]
[1730026021473,4.06,174.08,173.97,1.2694]
[1730026021867,1.1672,174.07,173.97,1.2694]
[1730026022063,1.1672,174.07,173.92,6.4881]
[1730026022467,2.8766,174.02,173.92,6.4881]
[1730026022675,4.06,174.01,173.92,6.4881]
[1730026022975,4.06,174.02,173.93,1.2261]
[1730026024273,4.06,174.02,173.98,2.8771]
[1730026025474,2.8768,174.0,173.95,2.8776]
[1730026027773,2.8768,174.0,173.93,1.2261]
[1730026027964,4.06,174.02,173.92,2.4281]
[1730026027965,2.8773,173.98,173.92,4.0656]
[1730026028170,4.06,173.98,173.87,4.06]
[1730026028380,4.06,173.98,173.87,5.271]
[1730026028572,2.8774,173.97,173.91,2.8782]
[1730026029172,2.8774,173.97,173.92,2.8781]
[1730026031069,6.9372,173.98,173.92,2.8781]
[1730026031275,1.2389,174.01,173.94,2.8778]
[1730026031472,4.06,174.0,173.87,5.271]
[1730026031674,4.06,173.99,173.87,5.271]
[1730026032078,4.06,173.99,173.95,2.8776]
[1730026032579,4.06,173.99,173.87,5.271]
[1730026032772,4.06,173.99,173.9,2.8784]
[1730026032971,4.06,173.99,173.87,5.271]
[1730026033372,4.06,173.99,173.94,2.8777]
[1730026034374,4.06,173.99,173.87,5.271]
[1730026034574,4.06,173.99,173.95,2.8776]
[1730026036890,6.937,173.99,173.93,2.8778]
[1730026037088,4.06,173.99,173.87,5.271]
[1730026037786,2.8772,173.98,173.92,2.878]
[1730026038175,4.06,173.99,173.87,5.271]
[1730026039481,4.06,173.99,173.94,2.8777]
[1730026040985,2.8764,174.03,173.98,2.8771]
[1730026041193,4.06,174.02,173.98,2.8771]
[1730026041492,4.06,174.01,173.98,2.8771]
[1730026042278,4.06,174.01,173.93,1.2577]
[1730026042894,2.8768,174.0,173.94,2.8776]
[1730026043085,2.8768,174.0,173.93,1.2577]
[1730026044288,2.8768,174.0,173.95,2.8775]
[1730026044483,4.06,174.01,173.85,55.92]
[1730026044789,2.8774,173.97,173.87,4.06]
[1730026044982,4.06,173.96,173.92,2.878]
[1730026050900,4.06,173.96,173.87,4.06]
[1730026051087,2.8777,173.95,173.9,2.8783]
[1730026052295,4.06,173.96,173.86,3.6378]
[1730026053198,2.8777,173.95,173.9,2.8784]
[1730026057191,4.06,173.96,173.9,2.8784]
[1730026057389,4.06,173.96,173.76,61.6815]
[1730026057592,1.2673,173.95,173.81,1.2409]
[1730026057793,3.5901,173.95,173.81,1.2409]
[1730026058297,2.8783,173.91,173.85,2.8792]
[1730026058499,4.06,173.9,173.85,2.8792]
[1730026058697,4.06,173.9,173.86,2.8791]
[1730026061497,6.9385,173.9,173.86,2.8791]
[1730026061698,4.06,173.9,173.81,1.2409]
[1730026061903,4.06,173.9,173.79,4.06]
[1730026062102,2.8787,173.89,173.79,4.06]
[1730026062700,2.8788,173.88,173.79,4.06]
[1730026063807,4.06,173.9,173.83,2.8795]
[1730026064004,2.8787,173.89,173.83,2.8795]
[1730026064505,2.8788,173.88,173.83,2.8795]
[1730026067201,2.8787,173.89,173.83,2.8795]
[1730026067603,2.8787,173.89,173.84,2.8794]
[1730026068506,4.06,173.9,173.79,4.06]
[1730026068712,4.06,173.89,173.79,4.06]
[1730026069412,4.06,173.89,173.78,1.2712]
[1730026070104,2.8788,173.88,173.78,1.2712]
[1730026070410,2.8788,173.88,173.82,2.8796]
[1730026071010,2.8788,173.88,173.78,1.2712]
[1730026071312,2.8788,173.88,173.83,2.8796]
[1730026071611,6.9387,173.89,173.85,2.8793]
[1730026071999,4.06,173.89,173.78,1.2712]
[1730026072203,4.06,173.91,173.81,4.06]
[1730026074317,2.8788,173.89,173.84,2.8795]
[1730026074999,4.06,173.91,173.81,4.06]
[1730026075202,2.8788,173.88,173.83,2.8796]
[1730026076315,4.06,173.91,173.81,4.06]
[1730026076609,2.8786,173.9,173.81,4.06]
[1730026077210,2.8783,173.91,173.81,4.06]
[1730026077417,4.06,173.9,173.81,4.06]
[1730026077710,4.06,173.9,173.87,2.8789]
[1730026079910,4.06,173.9,173.83,2.8795]
[1730026080110,4.06,173.9,173.84,3.7]
[1730026081109,4.06,173.9,173.89,2.8786]
[1730026081413,4.06,173.9,173.84,3.7]
[1730026082413,4.06,173.9,173.88,2.8788]
[1730026083918,4.06,173.9,173.89,2.8786]
[1730026084116,2.8778,173.94,173.89,2.8786]
[1730026084415,4.06,173.93,173.89,2.8786]
[1730026086710,4.06,173.93,173.85,4.06]
[1730026086908,4.06,173.93,173.84,3.7]
[1730026087312,2.8785,173.9,173.85,2.8792]
[1730026088011,6.9386,173.89,173.84,4.1154]
[1730026090021,6.9386,173.89,173.84,2.8794]
[1730026090320,6.9386,173.89,173.76,2.4438]
[1730026090321,2.8789,173.88,173.82,2.8797]
[1730026091117,4.06,173.89,173.82,2.8797]
[1730026091314,2.8791,173.87,173.82,2.8797]
[1730026092212,2.8794,173.85,173.79,2.8802]
[1730026092415,6.9394,173.85,173.79,2.8802]
[1730026092819,6.9394,173.85,173.77,1.2349]
[1730026093018,6.9394,173.85,173.8,2.8801]
[1730026098922,4.06,173.85,173.77,1.2349]
[1730026099218,4.06,173.86,173.77,1.2349]
[1730026100222,4.06,173.86,173.84,2.8794]
[1730026100614,4.06,173.86,173.79,4.06]
[1730026101014,2.3269,173.91,173.79,4.06]
[1730026101224,5.2893,173.9,173.77,1.2349]
[1730026101420,2.8793,173.86,173.8,2.88]
[1730026101625,4.06,173.85,173.8,2.88]
[1730026101824,4.06,173.85,173.77,1.2349]
[1730026102017,4.06,173.85,173.82,2.8797]
[1730026102323,4.06,173.85,173.77,1.2349]
[1730026104023,6.9394,173.85,173.8,2.88]
[1730026104525,6.9394,173.85,173.77,1.2349]
[1730026104526,4.06,173.85,173.77,1.2349]
[1730026104826,4.06,173.85,173.81,2.8799]
[1730026107529,4.06,173.85,173.83,2.8795]
[1730026108221,4.06,173.85,173.77,1.2349]
[1730026108428,4.06,173.85,173.81,2.8798]
[1730026112626,4.06,173.85,173.82,2.8797]
[1730026112828,4.06,173.85,173.77,1.2349]
[1730026113333,2.8797,173.83,173.78,2.8804]
[1730026114030,2.8797,173.83,173.79,2.8803]
[1730026114632,4.06,173.85,173.79,2.8803]
[1730026114835,2.8795,173.84,173.79,2.8803]
[1730026117028,4.06,173.85,173.81,2.8799]
[1730026117433,4.06,173.85,173.77,1.2349]
[1730026119240,4.06,173.85,173.81,2.8798]
[1730026120040,4.06,173.85,173.77,1.2349]
[1730026120235,4.06,173.85,173.82,2.8798]
[1730026124544,4.06,173.85,173.83,2.8796]
[1730026127750,4.06,173.85,173.82,2.8797]
[1730026128762,6.9394,173.85,173.81,2.8799]
[1730026132648,6.9394,173.85,173.73,4.06]
[1730026132649,4.06,173.85,173.64,28.88120655]
[1730026132850,4.06,173.85,173.7,1.1675]
[1730026133045,4.06,173.85,173.71,2.363]
[1730026133654,2.8801,173.81,173.76,2.8806]
[1730026133950,4.06,173.8,173.76,2.8806]
[1730026140649,6.9401,173.8,173.76,2.8806]
[1730026141557,6.9401,173.8,173.73,2.8812]
[1730026141759,2.8803,173.79,173.71,2.363]
[1730026142258,4.06,173.8,173.71,2.363]
[1730026142955,2.8806,173.78,173.71,5.2445]
[1730026143150,4.06,173.8,173.71,5.2445]
[1730026143354,4.06,173.8,173.71,2.363]
[1730026143653,2.8808,173.77,173.72,2.8814]
[1730026143846,4.06,173.76,173.72,2.8814]
[1730026144051,6.9409,173.76,173.71,2.8815]
[1730026144452,4.06,173.76,173.7,1.1675]
[1730026144761,4.06,173.76,173.73,2.8813]
[1730026145461,6.9408,173.76,173.71,2.8816]
[1730026146760,4.06,173.76,173.72,2.8814]
[1730026146960,4.06,173.76,173.7,1.1675]
[1730026147560,4.96903852,174.02,173.7,1.1675]
[1730026147561,20.09174214,173.94,173.7,1.1675]
[1730026147856,63.6226,173.92,173.71,2.4628]
[1730026148463,2.8798,173.82,173.77,2.8806]
[1730026148650,4.06,173.81,173.77,2.8806]
[1730026150158,4.06,173.81,173.8,2.8801]
[1730026150359,59.5626,173.92,173.71,2.4628]
[1730026150560,4.06,173.91,173.71,2.4628]
[1730026150763,2.8796,173.84,173.78,2.8804]
[1730026150951,4.06,173.83,173.78,2.8804]
[1730026151954,4.06,173.83,173.71,2.4628]
[1730026152161,6.9397,173.83,173.71,2.4628]
[1730026153065,6.9397,173.83,173.77,2.8805]
[1730026153862,2.8799,173.82,173.77,2.8805]
[1730026156965,2.8799,173.82,173.78,2.8804]
[1730026162775,4.06,173.83,173.78,2.8804]
[1730026162973,2.88,173.81,173.78,2.8804]
[1730026163174,4.06,173.83,173.78,2.8804]
[1730026164278,2.8798,173.82,173.78,2.8804]
[1730026164478,4.06,173.83,173.78,2.8804]
[1730026165373,4.06,173.82,173.76,2.8807]
[1730026165674,4.06,173.82,173.7,1.1675]
[1730026165879,2.8802,173.8,173.76,2.8807]
[1730026169081,2.88,173.81,173.77,2.8805]
[1730026169278,2.88,173.81,173.7,1.1675]
[1730026169773,17.28,173.91,173.7,1.1675]
[1730026169774,55.98,173.93,173.71,4.06]
[1730026169979,1.2256,173.91,173.72,1.05862031]
[1730026170177,4.06,173.9,173.72,3.9061898]
[1730026170474,2.8787,173.89,173.73,1.05862031]
[1730026170679,6.9387,173.89,173.73,1.05862031]
[1730026171179,6.9387,173.89,173.83,2.8795]
[1730026173180,4.06,173.89,173.83,2.8795]
[1730026173378,2.8788,173.88,173.83,2.8795]
[1730026173974,2.8788,173.88,173.76,3.6431]
[1730026174175,2.8788,173.88,173.84,2.8795]
[1730026181085,4.06,173.89,173.76,3.6431]
[1730026181484,2.8794,173.85,173.79,2.8801]
[1730026181790,4.12,173.84,173.76,3.6431]
[1730026181990,4.12,173.83,173.76,3.6431]
[1730026182188,4.12,173.82,173.76,3.6431]
[1730026183393,4.12,173.82,173.69,4.12]
[1730026183688,4.12,173.82,173.7,2.4104]
[1730026184093,2.8801,173.8,173.7,2.4104]
[1730026185387,2.8801,173.8,173.74,2.881]
[1730026185988,2.8801,173.8,173.75,2.8809]
[1730026186696,2.8804,173.79,173.74,2.8811]
[1730026186899,4.12,173.78,173.74,2.8811]
[1730026187403,4.12,173.78,173.73,2.8813]
[1730026187603,7.0005,173.78,173.73,2.8813]
[1730026188396,4.12,173.78,173.7,2.4104]
[1730026188701,2.8807,173.77,173.72,2.8813]
[1730026188902,2.8807,173.77,173.7,2.4104]
[1730026189100,2.8807,173.77,173.71,2.8815]
[1730026191406,4.12,173.87,173.72,5.17864548]
[1730026191594,4.12,173.86,173.73,2.33364548]
[1730026191798,2.8793,173.85,173.79,2.8802]
[1730026192204,4.12,173.86,173.81,2.8798]
[1730026192405,4.12,173.86,173.73,1.275]
[1730026192800,3.5535,173.92,173.74,1.05832918]
[1730026193004,2.8789,173.88,173.82,2.8797]
[1730026193309,4.12,173.87,173.76,4.12]
[1730026194300,4.12,173.87,173.82,2.8797]
[1730026194503,4.12,173.88,173.76,4.12]
[1730026194710,4.12,173.88,173.77,4.12]
[1730026195219,6.9989,173.88,173.77,4.12]
[1730026196110,6.9989,173.88,173.73,1.275]
[1730026196314,6.9989,173.88,173.82,2.8797]
[1730026197219,4.12,173.88,173.75,4.12]
[1730026197811,4.12,173.88,173.73,1.275]
[1730026200111,2.8799,173.82,173.76,2.8808]
[1730026200413,4.12,173.81,173.73,1.275]
[1730026200709,4.12,173.8,173.73,1.275]
[1730026201917,2.8803,173.79,173.73,1.275]
[1730026202413,7.0001,173.8,173.74,2.881]
[1730026204214,4.18,173.79,173.74,2.881]
[1730026205022,2.8799,173.82,173.77,2.8806]
[1730026205210,4.18,173.81,173.77,2.8806]
[1730026205406,4.18,173.8,173.77,2.8806]
[1730026206412,4.18,173.8,173.73,1.275]
[1730026206413,1.1127,173.91,173.79,2.8802]
[1730026206616,2.8795,173.84,173.79,2.8802]
[1730026206815,4.18,173.83,173.79,2.8802]
[1730026207719,1.1127,173.91,173.73,5.455]
[1730026208019,2.8793,173.85,173.8,2.8801]
[1730026208217,4.18,173.84,173.8,2.8801]
[1730026209720,4.18,173.84,173.76,2.8807]
[1730026209919,2.8792,173.86,173.73,5.455]
[1730026210124,1.1127,173.91,173.73,5.455]
[1730026210320,4.18,173.9,173.73,5.455]
[1730026210622,2.8789,173.88,173.74,1.05837371]
[1730026211123,2.8789,173.88,173.82,2.8797]
[1730026212219,2.8789,173.88,173.83,2.8796]
[1730026212623,4.18,173.87,173.83,2.8796]
[1730026212917,4.18,173.87,173.78,2.5005]